bitfinex/quotes_BTCUSD_20241010
["timestamp","ask_amount","ask_price","bid_price","bid_amount"]
[1728564741528,0.083318,61012.0,61005.0,0.327838]
[1728564741744,0.4091022,61011.0,61003.0,0.327849]
[1728564741998,0.083318,61012.0,61006.0,0.0099762]
[1728564741999,0.163915,61007.0,61006.0,0.0099762]
[1728564742247,0.163915,61007.0,60997.0,0.327881]
[1728564742248,0.28685356,61007.0,61000.0,0.2451962]
[1728564742475,0.163928,61003.0,60996.0,0.163943]
[1728564742695,0.163928,61003.0,61001.0,0.00999494]
[1728564742696,0.16083764,61002.0,61001.0,0.00999494]
[1728564742917,0.16083764,61002.0,60992.0,0.4107852]
[1728564742918,0.163938,60999.0,60992.0,0.4107852]
[1728564743126,0.16083764,60998.0,60993.0,0.163952]
[1728564743352,0.16083764,60998.0,60993.0,0.17397693]
[1728564743582,0.26053339,60998.0,60993.0,0.01002493]
[1728564743797,0.26053339,60998.0,60992.0,0.001634]
[1728564743798,0.16395,60994.0,60992.0,0.001634]
[1728564744014,0.16395,60994.0,60993.0,0.01002493]
[1728564744255,0.16395,60994.0,60992.0,0.001634]
[1728564744256,0.163953,60993.0,60992.0,0.001634]
[1728564744471,0.27907234,60995.0,60992.0,0.001634]
[1728564744826,0.163953,60993.0,60992.0,0.001634]
[1728564745240,0.32479064,60993.0,60992.0,0.001634]
[1728564745885,0.16083764,60993.0,60992.0,0.001634]
[1728564746124,0.32479064,60993.0,60992.0,0.001634]
[1728564747206,0.34094612,60993.0,60992.0,0.002634]
[1728564748073,0.17699312,60993.0,60992.0,0.002634]
[1728564748311,0.0824,60997.0,60992.0,0.001634]
[1728564748554,0.2480142,61012.0,60992.0,0.001634]
[1728564748555,0.01514748,60996.0,60994.0,0.163949]
[1728564748789,0.008,60993.0,60992.0,0.166589]
[1728564749010,0.2451962,61001.0,60992.0,0.166589]
[1728564749011,0.16083764,61000.0,60996.0,0.163943]
[1728564749641,0.0793,61004.0,60998.0,0.163937]
[1728564749852,0.0793,61004.0,60996.0,0.327885]
[1728564749853,0.17598325,61003.0,60997.0,0.163942]
[1728564750068,0.16083764,61003.0,60998.0,0.163939]
[1728564750722,0.27907234,61001.0,60992.0,0.007634]
[1728564750943,0.27907234,60993.0,60992.0,0.007634]
[1728564751247,0.60386298,60993.0,60992.0,0.007634]
[1728564751452,0.61900695,60993.0,60992.0,0.007634]
[1728564752050,0.60386298,60993.0,60992.0,0.007634]
[1728564752257,0.60386298,60993.0,60992.0,0.001634]
[1728564753110,0.61900412,60993.0,60992.0,0.001634]
[1728564753528,0.62500412,60993.0,60992.0,0.001634]
[1728564753963,0.62214912,60993.0,60992.0,0.001634]
[1728564754193,0.60700798,60993.0,60992.0,0.001634]
[1728564755207,0.62214668,60993.0,60992.0,0.001634]
[1728564755410,0.87066965,60993.0,60992.0,0.001634]
[1728564755688,0.73294668,60993.0,60992.0,0.001634]
[1728564756156,0.73494668,60993.0,60992.0,0.001634]
[1728564756395,0.83494668,60993.0,60992.0,0.001634]
[1728564756826,0.83294668,60993.0,60992.0,0.001634]
[1728564757030,0.83294668,60993.0,60992.0,0.002634]
[1728564757243,0.45072934,60993.0,60992.0,0.002634]
[1728564757489,0.42272934,60993.0,60992.0,0.002634]
[1728564757649,0.43272934,60993.0,60992.0,0.003634]
[1728564758808,0.43272934,60993.0,60992.0,0.002634]
[1728564759039,0.42272934,60993.0,60992.0,0.002634]
[1728564759261,0.43272934,60993.0,60992.0,0.003634]
[1728564759679,0.42272934,60993.0,60992.0,0.002634]
[1728564760167,0.42272934,60993.0,60992.0,0.001634]
[1728564760168,0.42572934,60993.0,60992.0,0.001634]
[1728564760604,0.59028781,60993.0,60992.0,0.001634]
[1728564761038,0.4514239,60993.0,60992.0,0.001634]
[1728564761270,0.2046709,60993.0,60992.0,0.002634]
[1728564761547,0.17897634,60993.0,60992.0,0.002634]
[1728564761778,0.34292934,60993.0,60992.0,0.002634]
[1728564762039,0.32779064,60993.0,60992.0,0.001634]
[1728564762263,0.34293422,60993.0,60992.0,0.001634]
[1728564762942,0.33993422,60993.0,60992.0,0.001634]
[1728564763190,0.35093422,60993.0,60992.0,0.002634]
[1728564763441,0.33993422,60993.0,60992.0,0.001634]
[1728564763673,0.45113422,60993.0,60992.0,0.001634]
[1728564764152,0.45113422,60993.0,60992.0,0.004634]
[1728564764153,0.57412906,60993.0,60992.0,0.004634]
[1728564764571,0.57312906,60993.0,60992.0,0.004634]
[1728564764796,0.66632321,60993.0,60992.0,0.002634]
[1728564765005,0.66832321,60993.0,60992.0,0.002634]
[1728564765206,0.62748479,60993.0,60992.0,0.002634]
[1728564765650,0.62548479,60993.0,60992.0,0.002634]
[1728564766480,0.62748479,60993.0,60992.0,0.002634]
[1728564767083,0.62148479,60993.0,60992.0,0.001634]
[1728564767291,0.63666539,60993.0,60992.0,0.001634]
[1728564767515,0.64566539,60993.0,60992.0,0.003634]
[1728564767727,0.63466539,60993.0,60992.0,0.002634]
[1728564768164,0.64766539,60993.0,60992.0,0.003634]
[1728564768569,0.64966539,60993.0,60992.0,0.003634]
[1728564769006,0.56047124,60993.0,60992.0,0.003634]
[1728564769223,0.54529064,60993.0,60992.0,0.003634]
[1728564769427,0.54729064,60993.0,60992.0,0.003634]
[1728564769654,0.57298487,60993.0,60992.0,0.003634]
[1728564770333,0.58817971,60993.0,60992.0,0.003634]
[1728564770558,0.74704962,60993.0,60992.0,0.003634]
[1728564771235,0.73185478,60993.0,60992.0,0.003634]
[1728564772180,0.72985478,60993.0,60992.0,0.003634]
[1728564773143,0.57098487,60993.0,60992.0,0.003634]
[1728564773418,0.36348487,60993.0,60992.0,0.003634]
[1728564774437,0.54976756,60993.0,60992.0,0.003634]
[1728564774912,0.57276756,60993.0,60992.0,0.003634]
[1728564775150,0.56647586,60993.0,60992.0,0.003634]
[1728564775399,0.58168639,60993.0,60992.0,0.003634]
[1728564779352,0.3954037,60993.0,60992.0,0.003634]
[1728564779575,0.58168639,60993.0,60992.0,0.003634]
[1728564779812,0.6489444,60993.0,60992.0,0.003634]
[1728564780066,0.6497614,60993.0,60992.0,0.003634]
[1728564780332,0.8360614,60993.0,60992.0,0.003634]
[1728564780604,0.81236717,60993.0,60992.0,0.003534]
[1728564780889,0.81236717,60993.0,60978.0,0.2451962]
[1728564780890,0.16399,60979.0,60978.0,0.2451962]
[1728564781130,0.55432086,60979.0,60978.0,0.2451962]
[1728564781356,0.187012,60971.0,60970.0,0.2451962]
[1728564781601,0.54934286,60971.0,60970.0,0.25677702]
[1728564781862,0.54934286,60971.0,60961.0,0.2468322]
[1728564781863,0.164035,60963.0,60961.0,0.2468322]
[1728564782110,0.20149322,60962.0,60961.0,0.2468322]
[1728564782356,0.01521053,60962.0,60961.0,0.2468322]
[1728564782603,0.01521053,60962.0,60961.0,0.001636]
[1728564782838,0.01521053,60962.0,60961.0,0.165675]
[1728564784900,0.01621053,60962.0,60961.0,0.165675]
[1728564784902,0.01521053,60962.0,60961.0,0.44285769]
[1728564785167,0.002,60962.0,60961.0,0.53245769]
[1728564785417,0.001,60962.0,60961.0,0.62345769]
[1728564785675,0.001,60962.0,60961.0,0.437175]
[1728564785915,0.002,60962.0,60961.0,0.446175]
[1728564786168,0.001,60962.0,60961.0,0.437175]
[1728564786908,0.001,60962.0,60961.0,0.447175]
[1728564787160,0.002,60962.0,60961.0,0.447175]
[1728564787687,0.001,60962.0,60961.0,0.347175]
[1728564788194,0.001,60962.0,60961.0,0.337175]
[1728564788458,0.2451962,60969.0,60966.0,0.164025]
[1728564788705,0.01518663,60968.0,60966.0,0.164025]
[1728564788957,0.01518663,60967.0,60966.0,0.164025]
[1728564789767,0.01518634,60967.0,60966.0,0.164025]
[1728564790278,0.01618634,60967.0,60966.0,0.171025]
[1728564791366,0.01618634,60967.0,60966.0,0.18273197]
[1728564791625,0.01618634,60967.0,60966.0,0.18436597]
[1728564792464,0.01618634,60967.0,60966.0,0.38572897]
[1728564792465,0.001,60967.0,60966.0,0.38572897]
[1728564792714,0.001,60967.0,60966.0,0.9189493]
[1728564792958,0.2451962,60978.0,60977.0,0.43247869]
[1728564793167,0.2451962,60978.0,60977.0,0.53137869]
[1728564793389,0.2451962,60978.0,60977.0,0.35674608]
[1728564793608,0.2451962,60985.0,60984.0,0.163977]
[1728564793840,0.26038851,60985.0,60984.0,0.163977]
[1728564794060,0.01519231,60985.0,60984.0,0.17560082]
[1728564795934,0.2452962,60992.0,60986.0,0.327941]
[1728564796243,0.2452962,60992.0,60984.0,0.02062382]
[1728564796244,0.01518932,60985.0,60984.0,0.02062382]
[1728564796486,0.163965,60989.0,60987.0,0.01156105]
[1728564796721,0.01518679,60988.0,60984.0,0.009]
[1728564796969,0.163969,60987.0,60984.0,0.009]
[1728564797211,0.001,60985.0,60984.0,0.172977]
[1728564797445,0.32479764,60991.0,60985.0,0.163974]
[1728564797682,0.01518467,60990.0,60985.0,0.163974]
[1728564797938,0.01518467,60989.0,60985.0,0.163974]
[1728564798195,0.01518467,60988.0,60985.0,0.163974]
[1728564798444,0.01518467,60987.0,60986.0,0.002]
[1728564798976,0.01618467,60987.0,60986.0,0.002]
[1728564799236,0.01617999,60987.0,60986.0,0.002]
[1728564799487,0.01617999,60987.0,60984.0,0.163977]
[1728564799735,0.001,60987.0,60984.0,0.163975]
[1728564799983,0.001,60987.0,60985.0,0.006]
[1728564800513,0.0001,60992.0,60988.0,0.163966]
[1728564800767,0.01517407,60991.0,60988.0,0.163964]
[1728564801008,0.01517407,60990.0,60988.0,0.327933]
[1728564801294,0.0001,60992.0,60990.0,0.1731]
[1728564801566,0.0001,60992.0,60991.0,0.163958]
[1728564802570,0.0001,60992.0,60991.0,0.263958]
[1728564802795,0.0001,60992.0,60991.0,0.42979564]
[1728564803062,0.0001,60992.0,60991.0,0.44179564]
[1728564803540,0.0001,60992.0,60991.0,0.275958]
[1728564803779,0.0001,60992.0,60991.0,0.012]
[1728564804003,0.0011,60992.0,60991.0,0.012]
[1728564804223,0.0001,60992.0,60991.0,0.012]
[1728564804445,0.0001,60992.0,60991.0,0.163958]
[1728564804677,0.0011,60992.0,60991.0,0.014]
[1728564804902,0.0011,60992.0,60991.0,0.012]
[1728564805151,0.0011,60992.0,60988.0,0.163964]
[1728564805375,0.0011,60992.0,60991.0,0.02639283]
[1728564805376,0.0021,60992.0,60991.0,0.02639283]
[1728564805621,0.0021,60992.0,60991.0,0.015]
[1728564805846,0.0021,60992.0,60991.0,0.02639283]
[1728564806055,0.0021,60992.0,60991.0,0.01439283]
[1728564806306,0.0021,60992.0,60991.0,0.17835083]
[1728564807187,0.0021,60992.0,60991.0,0.01439283]
[1728564807678,0.0021,60992.0,60991.0,0.17835083]
[1728564808543,0.0021,60992.0,60991.0,0.27377141]
[1728564808796,0.0021,60992.0,60991.0,0.47217141]
[1728564809046,0.0001,60992.0,60991.0,0.46095083]
[1728564809726,0.0011,60992.0,60991.0,0.46095083]
[1728564809940,0.0001,60992.0,60991.0,0.46095083]
[1728564810177,0.0011,60992.0,60991.0,0.46295083]
[1728564810419,0.0011,60992.0,60991.0,0.46095083]
[1728564810420,0.0001,60992.0,60991.0,0.46095083]
[1728564810643,0.0001,60992.0,60991.0,0.44895083]
[1728564810856,0.0011,60992.0,60991.0,0.46495083]
[1728564811099,0.0001,60992.0,60991.0,0.46295083]
[1728564811334,0.0001,60992.0,60991.0,0.57533141]
[1728564811562,0.0001,60992.0,60991.0,0.56133141]
[1728564812039,0.0001,60992.0,60991.0,0.44895083]
[1728564812308,0.0001,60992.0,60991.0,0.46095083]
[1728564812530,0.0011,60992.0,60991.0,0.38775083]
[1728564813012,0.0001,60992.0,60991.0,0.38575083]
[1728564813229,0.0011,60992.0,60991.0,0.28935083]
[1728564813450,0.0011,60992.0,60991.0,0.18935083]
[1728564813677,0.0001,60992.0,60991.0,0.18735083]
[1728564813934,0.0001,60992.0,60991.0,0.02339283]
[1728564814148,0.0011,60992.0,60991.0,0.02539283]
[1728564814887,0.0011,60992.0,60991.0,0.01339283]
[1728564815124,0.0011,60992.0,60991.0,0.02739283]
[1728564815611,0.0011,60992.0,60991.0,0.01339283]
[1728564816090,0.0011,60992.0,60991.0,0.02539283]
[1728564816359,0.32489264,60992.0,60991.0,0.02339283]
[1728564816616,0.32571064,60992.0,60991.0,0.01239283]
[1728564816884,0.32571064,60992.0,60991.0,0.001]
[1728564817115,0.32571064,60992.0,60991.0,0.006]
[1728564817360,0.34085424,60992.0,60991.0,0.005]
[1728564817856,0.34285424,60992.0,60991.0,0.005]
[1728564818616,0.32771064,60992.0,60991.0,0.005]
[1728564818853,0.3428593,60992.0,60985.0,0.165608]
[1728564819132,0.3399473,60991.0,60985.0,0.001634]
[1728564819372,0.01514866,60990.0,60986.0,0.01137949]
[1728564819608,0.1759863,60990.0,60986.0,0.01137949]
[1728564819858,0.16083764,60990.0,60986.0,0.01137949]
[1728564820344,0.000918,60992.0,60986.0,0.01137949]
[1728564820603,0.000918,60992.0,60991.0,0.163958]
[1728564820863,0.000918,60992.0,60988.0,0.327933]
[1728564821119,0.000918,60992.0,60987.0,0.327937]
[1728564821120,0.000918,60992.0,60991.0,0.17616483]
[1728564821382,0.000918,60992.0,60991.0,0.163958]
[1728564821875,0.000918,60992.0,60991.0,0.01219544]
[1728564822116,0.32571064,60992.0,60991.0,0.01219544]
[1728564822362,0.34088077,60992.0,60991.0,0.01219544]
[1728564822595,0.34088077,60992.0,60986.0,0.2501962]
[1728564822825,0.26058722,60991.0,60985.0,0.165607]
[1728564823303,0.01518045,60990.0,60985.0,0.165607]
[1728564823547,0.01518045,60989.0,60985.0,0.001634]
[1728564823786,0.01518045,60989.0,60987.0,0.163969]
[1728564824026,0.01518045,60989.0,60986.0,0.163971]
[1728564824514,0.01518045,60989.0,60985.0,0.001634]
[1728564824768,0.04955136,60989.0,60985.0,0.001634]
[1728564825004,0.01518045,60988.0,60985.0,0.165608]
[1728564825254,0.17914845,60988.0,60985.0,0.002634]
[1728564825473,0.0151827,60987.0,60985.0,0.002634]
[1728564825709,0.16083764,60990.0,60985.0,0.001634]
[1728564825945,0.01518278,60989.0,60985.0,0.168607]
[1728564826176,0.01518278,60988.0,60985.0,0.168607]
[1728564826413,0.01518278,60987.0,60985.0,0.165607]
[1728564826685,0.01518278,60987.0,60985.0,0.007634]
[1728564827189,0.01518278,60987.0,60985.0,0.171608]
[1728564827653,0.01518278,60987.0,60985.0,0.008634]
[1728564827885,0.01518278,60989.0,60985.0,0.171608]
[1728564828128,0.01518362,60988.0,60985.0,0.165608]
[1728564828360,0.01518362,60987.0,60985.0,0.171608]
[1728564828621,0.16083764,60990.0,60985.0,0.171608]
[1728564828859,0.01518397,60989.0,60985.0,0.171608]
[1728564829112,0.16083764,60990.0,60986.0,0.163971]
[1728564829113,0.01518397,60988.0,60986.0,0.163971]
[1728564829407,0.01518397,60987.0,60986.0,0.163971]
[1728564829677,0.01518397,60989.0,60988.0,0.163966]
[1728564829911,0.000918,60992.0,60989.0,0.163962]
[1728564830155,0.01518494,60991.0,60987.0,0.327937]
[1728564830438,0.000918,60992.0,60985.0,0.003634]
[1728564830439,0.01518494,60990.0,60985.0,0.003634]
[1728564830659,0.000918,60992.0,60986.0,0.327942]
[1728564830946,0.01518566,60991.0,60987.0,0.163968]
[1728564831163,0.01518566,60991.0,60988.0,0.001]
[1728564831397,0.01518566,60990.0,60985.0,0.32958]
[1728564831637,0.01518566,60989.0,60987.0,0.163968]
[1728564831870,0.16083764,60991.0,60987.0,0.163968]
[1728564832129,0.16083764,60991.0,60986.0,0.166971]
[1728564832130,0.01518591,60990.0,60986.0,0.166971]
[1728564832377,0.16083764,60991.0,60986.0,0.163971]
[1728564832378,0.01518591,60989.0,60986.0,0.163971]
[1728564832634,0.26942103,60991.0,60986.0,0.163971]
[1728564832887,0.01518623,60990.0,60986.0,0.163971]
[1728564833140,0.01518623,60989.0,60986.0,0.163971]
[1728564833402,0.01518623,60988.0,60986.0,0.169971]
[1728564833652,0.26942103,60991.0,60987.0,0.163969]
[1728564833653,0.0001,60990.0,60987.0,0.163969]
[1728564833896,0.01519128,60989.0,60987.0,0.163969]
[1728564834139,0.01519128,60988.0,60987.0,0.163969]
[1728564835018,0.0001,60990.0,60989.0,0.163963]
[1728564835498,0.0001,60990.0,60989.0,0.261663]
[1728564836385,0.0001,60990.0,60989.0,0.27369895]
[1728564836601,0.0001,60990.0,60989.0,0.27969895]
[1728564837036,0.0011,60990.0,60989.0,0.28169895]
[1728564837278,0.0001,60990.0,60989.0,0.27969895]
[1728564837773,0.0011,60990.0,60989.0,0.28069895]
[1728564837984,0.0011,60990.0,60989.0,0.17699895]
[1728564838215,0.0011,60990.0,60989.0,0.18799895]
[1728564840302,0.01629803,60990.0,60989.0,0.18799895]
[1728564840773,0.01711603,60990.0,60989.0,0.18799895]
[1728564841006,0.001918,60990.0,60989.0,0.18799895]
[1728564841483,0.001918,60990.0,60989.0,0.02403595]
[1728564841711,0.01711758,60990.0,60989.0,0.02403595]
[1728564841941,0.03761424,60990.0,60989.0,0.02403595]
[1728564842162,0.20157524,60990.0,60989.0,0.02403595]
[1728564842422,0.18107858,60990.0,60989.0,0.02403595]
[1728564842661,0.01711758,60990.0,60989.0,0.012]
[1728564843100,0.01711758,60990.0,60989.0,0.02402161]
[1728564843340,0.01711758,60990.0,60989.0,0.175963]
[1728564843555,0.01711758,60990.0,60989.0,0.18798461]
[1728564843802,0.01711758,60990.0,60989.0,0.02402161]
[1728564844699,0.01711758,60990.0,60989.0,0.18798461]
[1728564846803,0.01711758,60990.0,60989.0,0.02402161]
[1728564847481,0.01711758,60990.0,60989.0,0.012]
[1728564847708,0.01711758,60990.0,60989.0,0.02401455]
[1728564847933,0.01712988,60990.0,60989.0,0.02401455]
[1728564848153,0.01712988,60990.0,60989.0,0.18797755]
[1728564849311,0.01712988,60990.0,60989.0,0.36357755]
[1728564849984,0.001918,60990.0,60989.0,0.36357755]
[1728564850217,0.01713156,60990.0,60989.0,0.36357755]
[1728564851197,0.001918,60990.0,60989.0,0.36357755]
[1728564856219,0.001918,60990.0,60989.0,0.28077755]
[1728564860748,0.001918,60990.0,60989.0,0.18797755]
[1728564861216,0.0171254,60990.0,60989.0,0.02401455]
[1728564862455,0.20333947,60990.0,60989.0,0.02401455]
[1728564862712,0.0171254,60990.0,60989.0,0.02401455]
[1728564863225,0.0171254,60990.0,60989.0,0.18797755]
[1728564863934,0.001918,60990.0,60989.0,0.18797755]
[1728564864200,0.01712448,60990.0,60989.0,0.18797755]
[1728564864462,0.001918,60990.0,60989.0,0.18797755]
[1728564868216,0.001918,60990.0,60989.0,0.26967755]
[1728564868465,0.001918,60990.0,60989.0,0.36967755]
[1728564870710,0.001918,60990.0,60989.0,0.53051519]
[1728564871168,0.001918,60990.0,60989.0,0.57970434]
[1728564871643,0.001918,60990.0,60989.0,0.60361977]
[1728564871887,0.001918,60990.0,60989.0,0.78983384]
[1728564872372,0.001918,60990.0,60989.0,0.99597104]
[1728564872613,0.001918,60990.0,60989.0,0.92218731]
[1728564873127,0.001918,60990.0,60989.0,0.9959565]
[1728564873383,0.001918,60990.0,60989.0,1.15046019]
[1728564873664,0.001918,60990.0,60989.0,1.07870993]
[1728564874668,0.001918,60990.0,60989.0,1.06770993]
[1728564875394,0.001918,60990.0,60989.0,1.01648731]
[1728564875880,0.001918,60990.0,60989.0,1.0163762]
[1728564876134,0.000918,60990.0,60989.0,1.06456969]
[1728564876390,0.001918,60990.0,60989.0,0.83516213]
[1728564876651,0.001918,60990.0,60989.0,1.13366156]
[1728564876903,0.001918,60990.0,60989.0,1.10909378]
[1728564877162,0.001918,60990.0,60989.0,1.13366156]
[1728564877408,0.001918,60990.0,60989.0,0.94742495]
[1728564877652,0.001918,60990.0,60989.0,0.74144431]
[1728564877913,0.001918,60990.0,60989.0,0.9474219]
[1728564878188,0.001918,60990.0,60989.0,1.13363597]
[1728564878434,0.001918,60990.0,60989.0,0.92765743]
[1728564878686,0.001918,60990.0,60989.0,1.03534463]
[1728564878934,0.001918,60990.0,60989.0,1.10905543]
[1728564879243,0.001918,60990.0,60989.0,1.13362999]
[1728564879681,0.001918,60990.0,60989.0,1.16020252]
[1728564880163,0.001918,60990.0,60989.0,1.03734463]
[1728564880401,0.001918,60990.0,60989.0,1.16016815]
[1728564881401,1e-06,60990.0,60989.0,1.16016815]
[1728564881937,1e-06,60990.0,60989.0,0.97195408]
[1728564882179,1e-06,60990.0,60989.0,0.94237783]
[1728564882414,1e-06,60990.0,60989.0,0.94737783]
[1728564883365,1e-06,60990.0,60989.0,0.84913056]
[1728564884652,1e-06,60990.0,60989.0,0.63780061]
[1728564884914,1e-06,60990.0,60989.0,0.38773062]
[1728564886109,1e-06,60990.0,60989.0,0.48773062]
[1728564886835,1e-06,60990.0,60989.0,0.48273062]
[1728564887362,0.000819,60990.0,60989.0,0.48273062]
[1728564887863,0.000819,60990.0,60989.0,0.48773062]
[1728564890548,0.000819,60990.0,60989.0,0.90417495]
[1728564890812,0.000819,60990.0,60989.0,0.85504469]
[1728564891252,0.000819,60990.0,60989.0,1.11007511]
[1728564891501,0.000819,60990.0,60989.0,1.03637971]
[1728564892727,0.2451962,61005.0,61002.0,0.005]
[1728564892946,0.2451962,61005.0,61000.0,0.327868]
[1728564892947,0.2451962,61005.0,61004.0,0.45713707]
[1728564893167,0.2451962,61005.0,61004.0,0.61597471]
[1728564893384,0.02467333,61009.0,61008.0,0.263912]
[1728564893605,0.02467333,61009.0,61008.0,0.45012607]
[1728564893825,0.02467333,61009.0,61008.0,0.57330133]
[1728564894065,0.02467333,61009.0,61008.0,0.73913897]
[1728564894326,0.02467333,61009.0,61008.0,0.91233897]
[1728564894520,0.000818,61012.0,61009.0,0.107]
[1728564894776,0.000818,61012.0,61009.0,0.42974764]
[1728564894998,0.000818,61012.0,61009.0,0.47584624]
[1728564895226,0.000818,61012.0,61009.0,0.47784624]
[1728564895913,0.000818,61012.0,61009.0,0.49184624]
[1728564896838,0.001817,61010.0,61009.0,0.50384624]
[1728564897066,0.001817,61010.0,61009.0,0.49513948]
[1728564897525,0.001817,61010.0,61009.0,0.49013948]
[1728564897993,0.001817,61010.0,61009.0,0.49513948]
[1728564898242,0.001817,61010.0,61009.0,0.47055944]
[1728564898890,0.001817,61010.0,61009.0,0.3047218]
[1728564901589,0.001817,61010.0,61009.0,0.49093587]
[1728564901830,0.001817,61010.0,61009.0,0.65677351]
[1728564902065,0.001817,61010.0,61009.0,0.83237351]
[1728564902789,0.001817,61010.0,61009.0,0.90804815]
[1728564903293,0.001817,61010.0,61009.0,1.08887199]
[1728564903553,0.001817,61010.0,61009.0,0.88334122]
[1728564903841,1e-06,61012.0,61011.0,0.170904]
[1728564904070,0.000817,61020.0,61019.0,0.448583]
[1728564904297,1e-06,61020.0,61019.0,1.11526278]
[1728564904575,0.4211142,61048.0,61027.0,0.168861]
[1728564904782,0.4211142,61048.0,61027.0,0.71451271]
[1728564905041,0.4211142,61048.0,61027.0,0.72902612]
[1728564905284,0.4211142,61048.0,61033.0,0.268845]
[1728564905503,0.4211142,61048.0,61033.0,0.61589671]
[1728564905754,0.4211142,61048.0,61033.0,0.62838766]
[1728564905991,0.2451962,61041.0,61033.0,0.46755002]
[1728564906468,0.4211142,61048.0,61033.0,0.46755002]
[1728564906469,0.3272142,61048.0,61033.0,0.62838766]
[1728564906700,0.3272142,61048.0,61033.0,0.81510166]
[1728564907173,0.3272142,61048.0,61033.0,0.82910166]
[1728564907407,0.3272142,61048.0,61033.0,0.81510166]
[1728564907862,0.3272142,61048.0,61033.0,0.82910166]
[1728564908551,0.3272142,61048.0,61033.0,0.84310166]
[1728564909009,0.3272142,61048.0,61033.0,0.82910166]
[1728564909230,0.3272142,61048.0,61033.0,0.84310166]
[1728564909458,0.3272142,61048.0,61033.0,0.84510166]
[1728564909704,0.3272142,61048.0,61033.0,0.86937027]
[1728564910431,0.2460142,61048.0,61033.0,0.86937027]
[1728564911113,0.2460142,61048.0,61033.0,0.86737027]
[1728564913033,0.2460142,61048.0,61033.0,0.86937027]
[1728564914379,0.2460142,61048.0,61033.0,1.05558434]
[1728564914608,0.2460142,61048.0,61033.0,1.15088434]
[1728564914861,0.2460142,61048.0,61045.0,0.005]
[1728564915097,0.2460142,61048.0,61047.0,0.45002207]
[1728564915338,0.2460142,61048.0,61047.0,0.48325239]
[1728564915560,0.000818,61048.0,61047.0,0.49575255]
[1728564916726,0.000818,61048.0,61047.0,0.66159019]
[1728564918630,0.000818,61048.0,61047.0,0.66759019]
[1728564919042,0.000818,61048.0,61047.0,0.50175255]
[1728564920668,0.000818,61048.0,61047.0,0.66259019]
[1728564920892,0.000818,61048.0,61047.0,0.66959019]
[1728564921127,0.000818,61048.0,61047.0,0.74669019]
[1728564921816,0.000818,61048.0,61047.0,0.73869019]
[1728564922256,0.000818,61048.0,61047.0,0.75269019]
[1728564922490,0.000818,61048.0,61047.0,0.73869019]
[1728564922706,0.000818,61048.0,61047.0,0.76069019]
[1728564923180,0.000818,61048.0,61047.0,0.88219019]
[1728564923181,1e-06,61048.0,61047.0,0.88219019]
[1728564923396,1e-06,61049.0,61048.0,0.293805]
[1728564923642,1e-06,61049.0,61048.0,0.56505664]
[1728564924091,1e-06,61049.0,61048.0,0.57737317]
[1728564924553,0.000818,61053.0,61052.0,0.54322214]
[1728564924778,0.0001,61056.0,61055.0,0.168786]
[1728564924998,0.0001,61056.0,61055.0,0.98105178]
[1728564925240,0.0001,61056.0,61055.0,1.02657243]
[1728564925475,0.0001,61056.0,61055.0,1.02857243]
[1728564926397,0.0925,61080.0,61067.0,0.002]
[1728564926398,0.000818,61072.0,61067.0,0.002]
[1728564926645,0.00757,61084.0,61080.0,0.168719]
[1728564926864,0.00757,61084.0,61080.0,0.45493307]
[1728564927090,0.00757,61084.0,61083.0,0.268711]
[1728564927311,0.00757,61084.0,61083.0,0.270711]
[1728564927532,0.00757,61084.0,61083.0,0.45440327]
[1728564927759,0.000818,61096.0,61095.0,0.34989307]
[1728564928196,0.000818,61096.0,61095.0,0.36227981]
[1728564928427,0.000818,61096.0,61095.0,0.63353145]
[1728564929096,0.000818,61096.0,61095.0,0.17606574]
[1728564930090,0.000818,61096.0,61095.0,0.18906574]
[1728564930318,0.59340207,61109.0,61095.0,0.18906574]
[1728564930319,0.39062015,61109.0,61095.0,0.02538674]
[1728564930540,0.163655,61104.0,61098.0,0.163671]
[1728564930759,0.327294,61107.0,61098.0,0.163671]
[1728564930985,0.0256431,61106.0,61099.0,0.01231631]
[1728564931206,0.3529441,61106.0,61099.0,0.01231631]
[1728564931431,0.3529441,61106.0,61094.0,0.2451962]
[1728564931432,0.163656,61104.0,61098.0,0.163671]
[1728564931651,0.16083764,61104.0,61100.0,0.01231257]
[1728564931872,0.163662,61102.0,61099.0,0.01231631]
[1728564932094,0.163662,61102.0,61096.0,0.163676]
[1728564932318,0.163667,61100.0,61099.0,0.002]
[1728564932569,0.51071871,61100.0,61099.0,0.002]
[1728564933261,0.1637,61087.0,61086.0,0.2451962]
[1728564933487,0.59265171,61087.0,61086.0,0.2451962]
[1728564933716,0.68505171,61087.0,61086.0,0.2451962]
[1728564933993,0.163725,61078.0,61073.0,0.2451962]
[1728564934267,0.16083764,61077.0,61073.0,0.2451962]
[1728564934510,0.0762,61073.0,61061.0,0.2451962]
[1728564934717,0.34995707,61071.0,61070.0,0.2451962]
[1728564934947,0.163754,61068.0,61061.0,0.4089652]
[1728564935160,0.163747,61070.0,61062.0,0.163765]
[1728564935400,0.34995907,61071.0,61064.0,0.163761]
[1728564935610,0.163747,61070.0,61062.0,0.491301]
[1728564935847,0.16375,61069.0,61062.0,0.163767]
[1728564936068,0.48832264,61072.0,61061.0,0.2451962]
[1728564936069,0.02062243,61071.0,61061.0,0.5727332]
[1728564936290,0.163755,61067.0,61060.0,0.16377]
[1728564936544,0.163755,61067.0,61062.0,0.4089612]
[1728564936545,0.16083764,61067.0,61062.0,0.4089612]
[1728564936763,0.16083764,61067.0,61059.0,0.1]
[1728564936992,0.0762,61073.0,61064.0,0.2451962]
[1728564937212,0.32457864,61072.0,61064.0,0.163761]
[1728564937425,0.16083764,61072.0,61064.0,0.2451962]
[1728564937646,0.16083764,61072.0,61067.0,0.163752]
[1728564937872,0.001,61071.0,61067.0,0.163752]
[1728564938090,0.001,61071.0,61066.0,0.327514]
[1728564938091,0.001,61071.0,61066.0,0.163757]
[1728564938322,0.16083764,61072.0,61066.0,0.163757]
[1728564939002,0.006,61071.0,61064.0,0.001]
[1728564939241,0.18621407,61066.0,61050.0,0.163799]
[1728564939486,0.2178889,61070.0,61037.0,0.18621407]
[1728564939487,0.163776,61059.0,61058.0,0.2451962]
[1728564939715,0.163776,61059.0,61048.0,0.327606]